[Event "Titled Tuesday Blitz July 18 Early 2023"]
[White "Herman, Daniel"]
[Black "Garcia Blanco, Omar"]
[WhiteFideId "30935008"]
[BlackFideId "2287153"]
[WhiteElo "2423"]
[BlackElo "2597"]
[Result "1-0"]
[Round "3"]
[TimeControl "180+2"]
[Date "2023.07.18"]
[WhiteClock "0:00:06"]
[BlackClock "0:00:06"]
[Board "108"]

1. d4 {[%clk 0:03:00]}  Nf6 {[%clk 0:02:59]} 2. c4 {[%clk 0:03:01]}  e6 {[%clk 0:03:00]} 3. g3 {[%clk 0:02:59]}  d5 {[%clk 0:02:59]} 4. Nf3 {[%clk 0:02:57]}  Be7 {[%clk 0:03:00]} 5. Bg2 {[%clk 0:02:57]}  O-O {[%clk 0:03:01]} 6. O-O {[%clk 0:02:58]}  c6 {[%clk 0:03:01]} 7. Qc2 {[%clk 0:02:53]}  b6 {[%clk 0:03:01]} 8. Bf4 {[%clk 0:02:45]}  Bb7 {[%clk 0:03:01]} 9. Nbd2 {[%clk 0:02:39]}  Na6 {[%clk 0:03:00]} 10. a3 {[%clk 0:02:33]}  Rc8 {[%clk 0:02:59]} 11. e4 {[%clk 0:02:30]}  dxc4 {[%clk 0:02:58]} 12. Nxc4 {[%clk 0:02:20]}  c5 {[%clk 0:02:58]} 13. d5 {[%clk 0:01:47]}  exd5 {[%clk 0:02:43]} 14. exd5 {[%clk 0:01:47]}  Bxd5 {[%clk 0:01:27]} 15. Rad1 {[%clk 0:01:47]}  b5 {[%clk 0:01:28]} 16. Ne3 {[%clk 0:01:39]}  Rc7 {[%clk 0:01:03]} 17. Bxc7 {[%clk 0:01:31]}  Nxc7 {[%clk 0:01:04]} 18. Ng5 {[%clk 0:01:04]}  g6 {[%clk 0:00:49]} 19. Rfe1 {[%clk 0:00:55]}  c4 {[%clk 0:00:32]} 20. Nxd5 {[%clk 0:00:46]}  Nfxd5 {[%clk 0:00:33]} 21. Ne4 {[%clk 0:00:38]}  Qc8 {[%clk 0:00:30]} 22. Nc3 {[%clk 0:00:34]}  Nxc3 {[%clk 0:00:29]} 23. Qxc3 {[%clk 0:00:35]}  Bc5 {[%clk 0:00:29]} 24. Qf6 {[%clk 0:00:32]}  Ne6 {[%clk 0:00:26]} 25. Bd5 {[%clk 0:00:31]}  Ng7 {[%clk 0:00:23]} 26. Re4 {[%clk 0:00:23]}  Nh5 {[%clk 0:00:12]} 27. Qe5 {[%clk 0:00:20]}  Bb6 {[%clk 0:00:10]} 28. Rde1 {[%clk 0:00:20]}  Qc5 {[%clk 0:00:10]} 29. R1e2 {[%clk 0:00:18]}  Ng7 {[%clk 0:00:07]} 30. b4 {[%clk 0:00:13]}  cxb3 {[%clk 0:00:06]} 31. Bxb3 {[%clk 0:00:12]}  Qc1+ {[%clk 0:00:07]} 32. Kg2 {[%clk 0:00:12]}  Qxa3 {[%clk 0:00:08]} 33. Bd5 {[%clk 0:00:10]}  Qc5 {[%clk 0:00:08]} 34. Rf4 {[%clk 0:00:10]}  Bc7 {[%clk 0:00:06]} 35. Bxf7+ {[%clk 0:00:05]}  Kh8 {[%clk 0:00:05]} 36. Qxc5 {[%clk 0:00:06]}  Rc8 {[%clk 0:00:02]} 37. Rf6 {[%clk 0:00:05]}  Nf5 {[%clk 0:00:03]} 38. Rxf5 {[%clk 0:00:05]}  Kg7 {[%clk 0:00:04]} 39. Rf4 {[%clk 0:00:04]}  Bb6 {[%clk 0:00:04]} 40. Qxc8 {[%clk 0:00:04]}  b4 {[%clk 0:00:05]} 41. Qe6 {[%clk 0:00:05]}  Kh6 {[%clk 0:00:06]} 42. Qf6 {[%clk 0:00:05]}  Bd4 {[%clk 0:00:06]} 43. Rh4# {[%clk 0:00:06]} 1-0


[Site "https://www.chess.com"]

[Event "Titled Tuesday Blitz July 18 Early 2023"]
[White "vishwa_vijeta"]
[Black "Karttunen, Mika"]
[BlackFideId "502081"]
[WhiteElo "2423"]
[BlackElo "2596"]
[Result "0-1"]
[Round "3"]
[TimeControl "180+2"]
[Date "2023.07.18"]
[WhiteClock "0:00:06"]
[BlackClock "0:00:13"]
[Board "109"]

1. e4 {[%clk 0:03:00]}  e5 {[%clk 0:02:58]} 2. Nf3 {[%clk 0:03:00]}  Nc6 {[%clk 0:02:58]} 3. d4 {[%clk 0:03:00]}  exd4 {[%clk 0:02:57]} 4. Nxd4 {[%clk 0:03:00]}  Nf6 {[%clk 0:02:57]} 5. Nxc6 {[%clk 0:03:00]}  bxc6 {[%clk 0:02:57]} 6. e5 {[%clk 0:02:59]}  Qe7 {[%clk 0:02:57]} 7. Qe2 {[%clk 0:02:59]}  Nd5 {[%clk 0:02:56]} 8. h4 {[%clk 0:02:59]}  a5 {[%clk 0:02:45]} 9. c4 {[%clk 0:02:49]}  Nb6 {[%clk 0:02:41]} 10. b3 {[%clk 0:02:16]}  a4 {[%clk 0:02:34]} 11. Bb2 {[%clk 0:02:12]}  axb3 {[%clk 0:02:31]} 12. axb3 {[%clk 0:02:13]}  Rxa1 {[%clk 0:02:22]} 13. Bxa1 {[%clk 0:02:14]}  Qb4+ {[%clk 0:02:22]} 14. Nd2 {[%clk 0:02:12]}  Qa5 {[%clk 0:02:18]} 15. Bb2 {[%clk 0:01:27]}  Qa2 {[%clk 0:02:14]} 16. Bc3 {[%clk 0:01:26]}  Qa3 {[%clk 0:01:52]} 17. Qd1 {[%clk 0:00:56]}  Bb4 {[%clk 0:01:45]} 18. Bxb4 {[%clk 0:00:56]}  Qxb4 {[%clk 0:01:45]} 19. Bd3 {[%clk 0:00:55]}  d5 {[%clk 0:01:24]} 20. O-O {[%clk 0:00:48]}  O-O {[%clk 0:01:21]} 21. cxd5 {[%clk 0:00:40]}  cxd5 {[%clk 0:01:13]} 22. Nf3 {[%clk 0:00:40]}  Bg4 {[%clk 0:01:07]} 23. g3 {[%clk 0:00:37]}  h6 {[%clk 0:01:03]} 24. Kg2 {[%clk 0:00:34]}  c5 {[%clk 0:01:02]} 25. Bb1 {[%clk 0:00:30]}  Qc3 {[%clk 0:00:44]} 26. Qd3 {[%clk 0:00:27]}  Qxd3 {[%clk 0:00:41]} 27. Bxd3 {[%clk 0:00:28]}  Ra8 {[%clk 0:00:38]} 28. Rc1 {[%clk 0:00:26]}  Ra5 {[%clk 0:00:32]} 29. Nh2 {[%clk 0:00:15]}  Be6 {[%clk 0:00:32]} 30. Nf3 {[%clk 0:00:16]}  Kf8 {[%clk 0:00:31]} 31. Rb1 {[%clk 0:00:13]}  Ra3 {[%clk 0:00:25]} 32. Be2 {[%clk 0:00:13]}  Ke7 {[%clk 0:00:25]} 33. b4 {[%clk 0:00:13]}  c4 {[%clk 0:00:25]} 34. Nd4 {[%clk 0:00:13]}  Ra2 {[%clk 0:00:24]} 35. Bf3 {[%clk 0:00:12]}  Bd7 {[%clk 0:00:23]} 36. Rc1 {[%clk 0:00:13]}  Rd2 {[%clk 0:00:23]} 37. Ne2 {[%clk 0:00:12]}  d4 {[%clk 0:00:21]} 38. Nf4 {[%clk 0:00:11]}  c3 {[%clk 0:00:21]} 39. Be4 {[%clk 0:00:05]}  Bb5 {[%clk 0:00:19]} 40. Kf3 {[%clk 0:00:04]}  Rb2 {[%clk 0:00:19]} 41. Bd3 {[%clk 0:00:02]}  Bc6+ {[%clk 0:00:19]} 42. Kg4 {[%clk 0:00:01]}  Rxb4 {[%clk 0:00:18]} 43. Ra1 {[%clk 0:00:02]}  Nd7 {[%clk 0:00:18]} 44. e6 {[%clk 0:00:01]}  fxe6 {[%clk 0:00:18]} 45. Kh3 {[%clk 0:00:02]}  e5 {[%clk 0:00:18]} 46. Ng6+ {[%clk 0:00:03]}  Kd6 {[%clk 0:00:18]} 47. h5 {[%clk 0:00:03]}  Bb5 {[%clk 0:00:17]} 48. Bf5 {[%clk 0:00:03]}  Nc5 {[%clk 0:00:17]} 49. Ra8 {[%clk 0:00:03]}  e4 {[%clk 0:00:17]} 50. Rd8+ {[%clk 0:00:04]}  Kc7 {[%clk 0:00:17]} 51. Re8 {[%clk 0:00:03]}  c2 {[%clk 0:00:17]} 52. Re7+ {[%clk 0:00:04]}  Kb6 {[%clk 0:00:17]} 53. Bxe4 {[%clk 0:00:03]}  c1=Q {[%clk 0:00:16]} 54. Bg2 {[%clk 0:00:03]}  Rb1 {[%clk 0:00:16]} 55. Rxg7 {[%clk 0:00:04]}  Qg5 {[%clk 0:00:15]} 56. g4 {[%clk 0:00:04]}  Qf6 {[%clk 0:00:15]} 57. Rb7+ {[%clk 0:00:02]}  Nxb7 {[%clk 0:00:14]} 58. g5 {[%clk 0:00:03]}  Qxg5 {[%clk 0:00:14]} 59. Bxb7 {[%clk 0:00:04]}  Qxh5+ {[%clk 0:00:15]} 60. Kg3 {[%clk 0:00:04]}  Qxg6+ {[%clk 0:00:14]} 61. Kf4 {[%clk 0:00:05]}  Kxb7 {[%clk 0:00:14]} 62. Ke5 {[%clk 0:00:04]}  Qg5+ {[%clk 0:00:14]} 63. Kxd4 {[%clk 0:00:05]}  Qf4+ {[%clk 0:00:14]} 64. Kc5 {[%clk 0:00:06]}  Rc1+ {[%clk 0:00:14]} 65. Kxb5 {[%clk 0:00:06]}  Qe5+ {[%clk 0:00:14]} 66. Ka4 {[%clk 0:00:05]}  Qb2 {[%clk 0:00:12]} 67. Ka5 {[%clk 0:00:06]}  Ra1# {[%clk 0:00:13]} 0-1


[Site "https://www.chess.com"]

[Event "Titled Tuesday Blitz July 18 Early 2023"]
[White "Sadykov, Ramil"]
[Black "Chernyavsky, Alexander"]
[WhiteFideId "24113590"]
[BlackFideId "24131156"]
[WhiteElo "2590"]
[BlackElo "2417"]
[Result "0-1"]
[Round "3"]
[TimeControl "180+2"]
[Date "2023.07.18"]
[WhiteClock "0:00:00"]
[BlackClock "0:00:40"]
[Board "112"]

1. d4 {[%clk 0:02:53]}  Nf6 {[%clk 0:02:56]} 2. c4 {[%clk 0:02:51]}  g6 {[%clk 0:02:57]} 3. Nc3 {[%clk 0:02:51]}  Bg7 {[%clk 0:02:57]} 4. e4 {[%clk 0:02:51]}  O-O {[%clk 0:02:58]} 5. Be2 {[%clk 0:02:52]}  d6 {[%clk 0:02:58]} 6. Be3 {[%clk 0:02:53]}  e5 {[%clk 0:02:58]} 7. d5 {[%clk 0:02:48]}  a5 {[%clk 0:02:58]} 8. g4 {[%clk 0:02:47]}  Nfd7 {[%clk 0:02:58]} 9. Qd2 {[%clk 0:02:45]}  Nc5 {[%clk 0:02:51]} 10. h4 {[%clk 0:02:38]}  c6 {[%clk 0:02:43]} 11. h5 {[%clk 0:02:11]}  cxd5 {[%clk 0:02:41]} 12. cxd5 {[%clk 0:02:08]}  Nba6 {[%clk 0:02:31]} 13. Bh6 {[%clk 0:02:03]}  Bxh6 {[%clk 0:02:06]} 14. Qxh6 {[%clk 0:02:04]}  g5 {[%clk 0:02:06]} 15. O-O-O {[%clk 0:01:18]}  f6 {[%clk 0:02:06]} 16. Nh3 {[%clk 0:01:03]}  Rb8 {[%clk 0:01:45]} 17. f3 {[%clk 0:00:58]}  Bd7 {[%clk 0:01:35]} 18. Rdg1 {[%clk 0:00:18]}  b5 {[%clk 0:01:28]} 19. f4 {[%clk 0:00:19]}  exf4 {[%clk 0:01:28]} 20. Nxf4 {[%clk 0:00:19]}  b4 {[%clk 0:01:18]} 21. Nd1 {[%clk 0:00:19]}  Nxe4 {[%clk 0:01:08]} 22. Bxa6 {[%clk 0:00:09]}  Qc7+ {[%clk 0:01:07]} 23. Nc3 {[%clk 0:00:06]}  bxc3 {[%clk 0:01:07]} 24. b3 {[%clk 0:00:06]}  Qc5 {[%clk 0:01:05]} 25. Ng6 {[%clk 0:00:01]}  Qa3+ {[%clk 0:01:04]} 26. Kd1 {[%clk 0:00:01]}  Qxa2 {[%clk 0:01:00]} 27. Ne7+ {[%clk 0:00:01]}  Kf7 {[%clk 0:00:54]} 28. Qxh7+ {[%clk 0:00:01]}  Ke8 {[%clk 0:00:55]} 29. Qg6+ {[%clk 0:00:02]}  Kxe7 {[%clk 0:00:55]} 30. Qxe4+ {[%clk 0:00:02]}  Kd8 {[%clk 0:00:55]} 31. Qc2 {[%clk 0:00:02]}  Qa1+ {[%clk 0:00:42]} 32. Ke2 {[%clk 0:00:00]}  Bxg4+ {[%clk 0:00:40]} 0-1


[Site "https://www.chess.com"]

[Event "Titled Tuesday Blitz July 18 Early 2023"]
[White "Harriott, Tyrell"]
[Black "Ahmad, Khagan"]
[WhiteFideId "2086484"]
[BlackFideId "13431552"]
[WhiteElo "2413"]
[BlackElo "2589"]
[Result "0-1"]
[Round "3"]
[TimeControl "180+2"]
[Date "2023.07.18"]
[WhiteClock "0:01:28"]
[BlackClock "0:01:59"]
[Board "115"]

1. d4 {[%clk 0:03:00]}  Nf6 {[%clk 0:02:59]} 2. e3 {[%clk 0:03:01]}  d5 {[%clk 0:02:59]} 3. Bd3 {[%clk 0:02:58]}  c5 {[%clk 0:02:59]} 4. c3 {[%clk 0:02:58]}  Nc6 {[%clk 0:02:59]} 5. f4 {[%clk 0:02:58]}  g6 {[%clk 0:02:58]} 6. Nf3 {[%clk 0:02:56]}  Bf5 {[%clk 0:02:57]} 7. O-O {[%clk 0:02:56]}  c4 {[%clk 0:02:54]} 8. Bc2 {[%clk 0:02:54]}  Bxc2 {[%clk 0:02:53]} 9. Qxc2 {[%clk 0:02:54]}  Qd7 {[%clk 0:02:50]} 10. Nbd2 {[%clk 0:02:53]}  Qf5 {[%clk 0:02:37]} 11. Ne5 {[%clk 0:02:54]}  Qxc2 {[%clk 0:02:36]} 12. Ndf3 {[%clk 0:02:11]}  Ne4 {[%clk 0:02:25]} 13. a4 {[%clk 0:02:03]}  Bg7 {[%clk 0:02:23]} 14. Ne1 {[%clk 0:01:55]}  Qe2 {[%clk 0:02:21]} 15. N5f3 {[%clk 0:01:50]}  Na5 {[%clk 0:02:16]} 16. Rb1 {[%clk 0:01:49]}  Nb3 {[%clk 0:02:14]} 17. Ne5 {[%clk 0:01:43]}  Bxe5 {[%clk 0:02:11]} 18. dxe5 {[%clk 0:01:41]}  Nbd2 {[%clk 0:02:05]} 19. Bxd2 {[%clk 0:01:39]}  Nxd2 {[%clk 0:02:06]} 20. Rf2 {[%clk 0:01:37]}  Qxe3 {[%clk 0:02:05]} 21. Rc1 {[%clk 0:01:34]}  Ne4 {[%clk 0:02:03]} 22. Rc2 {[%clk 0:01:32]}  Nxf2 {[%clk 0:02:03]} 23. Rxf2 {[%clk 0:01:32]}  b5 {[%clk 0:02:02]} 24. Nc2 {[%clk 0:01:29]}  Qc1+ {[%clk 0:02:01]} 25. Rf1 {[%clk 0:01:29]}  Qxc2 {[%clk 0:02:00]} 26. axb5 {[%clk 0:01:29]}  Qxb2 {[%clk 0:02:00]} 27. h3 {[%clk 0:01:29]}  Qxc3 {[%clk 0:02:00]} 28. Rd1 {[%clk 0:01:29]}  Qe3+ {[%clk 0:01:58]} 29. Kh1 {[%clk 0:01:28]}  c3 {[%clk 0:01:59]} 30. Rxd5 {[%clk 0:01:28]}  c2 {[%clk 0:01:59]} 31. e6 {[%clk 0:01:27]}  c1=Q+ {[%clk 0:01:59]} 32. Kh2 {[%clk 0:01:28]}  Qcg1# {[%clk 0:01:59]} 0-1


[Site "https://www.chess.com"]

[Event "Titled Tuesday Blitz July 18 Early 2023"]
[White "The_Sherman_Variation"]
[Black "Bueno, Alfeu Junior Varela"]
[BlackFideId "2108879"]
[WhiteElo "2585"]
[BlackElo "2407"]
[Result "0-1"]
[Round "3"]
[TimeControl "180+2"]
[Date "2023.07.18"]
[WhiteClock "0:01:41"]
[BlackClock "0:01:45"]
[Board "117"]

1. b4 {[%clk 0:03:00]}  e6 {[%clk 0:02:54]} 2. Bb2 {[%clk 0:03:01]}  f5 {[%clk 0:02:55]} 3. c4 {[%clk 0:03:01]}  Nf6 {[%clk 0:02:55]} 4. a3 {[%clk 0:03:01]}  b6 {[%clk 0:02:55]} 5. e3 {[%clk 0:03:01]}  Bb7 {[%clk 0:02:56]} 6. Nf3 {[%clk 0:03:01]}  Be7 {[%clk 0:02:56]} 7. Nc3 {[%clk 0:03:01]}  O-O {[%clk 0:02:57]} 8. g3 {[%clk 0:03:01]}  Qe8 {[%clk 0:02:53]} 9. Bg2 {[%clk 0:03:01]}  d6 {[%clk 0:02:51]} 10. O-O {[%clk 0:03:00]}  Nbd7 {[%clk 0:02:50]} 11. d4 {[%clk 0:02:48]}  Ne4 {[%clk 0:02:47]} 12. Nxe4 {[%clk 0:02:45]}  Bxe4 {[%clk 0:02:48]} 13. Nd2 {[%clk 0:02:41]}  Bxg2 {[%clk 0:02:43]} 14. Kxg2 {[%clk 0:02:41]}  Qg6 {[%clk 0:02:42]} 15. f4 {[%clk 0:02:39]}  Nf6 {[%clk 0:02:41]} 16. Qf3 {[%clk 0:02:33]}  Qh6 {[%clk 0:02:36]} 17. e4 {[%clk 0:02:28]}  Rae8 {[%clk 0:02:35]} 18. exf5 {[%clk 0:02:23]}  exf5 {[%clk 0:02:34]} 19. Rae1 {[%clk 0:02:24]}  Bd8 {[%clk 0:02:24]} 20. d5 {[%clk 0:02:22]}  Qg6 {[%clk 0:02:11]} 21. Nb3 {[%clk 0:02:10]}  Ne4 {[%clk 0:02:05]} 22. Nd4 {[%clk 0:02:10]}  Nd2 {[%clk 0:02:03]} 23. Qd3 {[%clk 0:02:05]}  Nxf1 {[%clk 0:01:59]} 24. Qxf1 {[%clk 0:02:06]}  Bf6 {[%clk 0:01:57]} 25. Ba1 {[%clk 0:02:02]}  Bxd4 {[%clk 0:01:52]} 26. Bxd4 {[%clk 0:02:01]}  Rxe1 {[%clk 0:01:52]} 27. Qxe1 {[%clk 0:02:02]}  Re8 {[%clk 0:01:52]} 28. Qd2 {[%clk 0:01:59]}  Qf7 {[%clk 0:01:50]} 29. Bc3 {[%clk 0:01:53]}  Qe7 {[%clk 0:01:48]} 30. Kh3 {[%clk 0:01:53]}  Qe2 {[%clk 0:01:44]} 31. Qd4 {[%clk 0:01:45]}  Qh5+ {[%clk 0:01:43]} 32. Kg2 {[%clk 0:01:41]}  Re2+ {[%clk 0:01:44]} 33. Kf1 {[%clk 0:01:41]}  Qf3+ {[%clk 0:01:44]} 34. Kg1 {[%clk 0:01:41]}  Qg2# {[%clk 0:01:45]} 0-1


[Site "https://www.chess.com"]

[Event "Titled Tuesday Blitz July 18 Early 2023"]
[White "Chitlange Sakshi"]
[Black "Pham, Khoi"]
[WhiteFideId "35002899"]
[BlackFideId "1054988"]
[WhiteElo "2407"]
[BlackElo "2579"]
[Result "0-1"]
[Round "3"]
[TimeControl "180+2"]
[Date "2023.07.18"]
[WhiteClock "0:01:09"]
[BlackClock "0:02:02"]
[Board "118"]

1. Nf3 {[%clk 0:03:00]}  Nf6 {[%clk 0:02:58]} 2. g3 {[%clk 0:02:59]}  g6 {[%clk 0:02:57]} 3. Bg2 {[%clk 0:02:59]}  Bg7 {[%clk 0:02:57]} 4. O-O {[%clk 0:03:00]}  O-O {[%clk 0:02:57]} 5. d4 {[%clk 0:03:00]}  d6 {[%clk 0:02:56]} 6. c4 {[%clk 0:03:00]}  c5 {[%clk 0:02:56]} 7. Nc3 {[%clk 0:02:57]}  Nc6 {[%clk 0:02:56]} 8. d5 {[%clk 0:02:55]}  Na5 {[%clk 0:02:55]} 9. Nd2 {[%clk 0:02:52]}  a6 {[%clk 0:02:54]} 10. a4 {[%clk 0:02:45]}  e6 {[%clk 0:02:46]} 11. e4 {[%clk 0:02:44]}  exd5 {[%clk 0:02:44]} 12. cxd5 {[%clk 0:02:34]}  Bd7 {[%clk 0:02:40]} 13. Qc2 {[%clk 0:02:06]}  b5 {[%clk 0:02:38]} 14. axb5 {[%clk 0:02:05]}  axb5 {[%clk 0:02:39]} 15. Re1 {[%clk 0:02:03]}  Re8 {[%clk 0:02:37]} 16. Nf3 {[%clk 0:01:58]}  b4 {[%clk 0:02:35]} 17. Nd1 {[%clk 0:01:58]}  c4 {[%clk 0:02:32]} 18. Bg5 {[%clk 0:01:48]}  Qb6 {[%clk 0:02:25]} 19. Be3 {[%clk 0:01:44]}  Qb5 {[%clk 0:02:22]} 20. Nd4 {[%clk 0:01:42]}  Qb7 {[%clk 0:02:21]} 21. f3 {[%clk 0:01:36]}  Nxd5 {[%clk 0:02:19]} 22. exd5 {[%clk 0:01:35]}  Bxd4 {[%clk 0:02:18]} 23. Bxd4 {[%clk 0:01:31]}  Rxe1+ {[%clk 0:02:16]} 24. Kf2 {[%clk 0:01:32]}  Qxd5 {[%clk 0:02:13]} 25. Kxe1 {[%clk 0:01:24]}  Qxd4 {[%clk 0:02:12]} 26. Kf1 {[%clk 0:01:17]}  c3 {[%clk 0:02:08]} 27. bxc3 {[%clk 0:01:13]}  Bb5+ {[%clk 0:02:06]} 28. Ke1 {[%clk 0:01:09]}  Qg1+ {[%clk 0:02:02]} 0-1


[Site "https://www.chess.com"]

[Event "Titled Tuesday Blitz July 18 Early 2023"]
[White "Souleidis, Georgios"]
[Black "Mazurkiewicz, Michal"]
[WhiteFideId "4206827"]
[BlackFideId "1124943"]
[WhiteElo "2577"]
[BlackElo "2404"]
[Result "0-1"]
[Round "3"]
[TimeControl "180+2"]
[Date "2023.07.18"]
[WhiteClock "0:00:05"]
[BlackClock "0:00:12"]
[Board "120"]

1. e4 {[%clk 0:03:00]}  d6 {[%clk 0:02:59]} 2. d4 {[%clk 0:03:00]}  Nf6 {[%clk 0:03:00]} 3. Nc3 {[%clk 0:03:01]}  c6 {[%clk 0:03:00]} 4. a4 {[%clk 0:02:50]}  e5 {[%clk 0:03:00]} 5. Nf3 {[%clk 0:02:43]}  Qc7 {[%clk 0:03:00]} 6. Bc4 {[%clk 0:02:42]}  Be7 {[%clk 0:03:00]} 7. O-O {[%clk 0:02:42]}  O-O {[%clk 0:03:00]} 8. h3 {[%clk 0:02:41]}  Nbd7 {[%clk 0:03:00]} 9. Re1 {[%clk 0:02:42]}  b6 {[%clk 0:02:59]} 10. b3 {[%clk 0:02:42]}  Bb7 {[%clk 0:02:58]} 11. Bb2 {[%clk 0:02:42]}  a6 {[%clk 0:02:58]} 12. Bd3 {[%clk 0:02:43]}  Rfe8 {[%clk 0:02:57]} 13. Ne2 {[%clk 0:02:42]}  Bf8 {[%clk 0:02:54]} 14. Ng3 {[%clk 0:02:42]}  g6 {[%clk 0:02:31]} 15. c4 {[%clk 0:02:42]}  Bg7 {[%clk 0:02:30]} 16. d5 {[%clk 0:02:39]}  Nc5 {[%clk 0:02:29]} 17. b4 {[%clk 0:02:30]}  Nxd3 {[%clk 0:02:26]} 18. Qxd3 {[%clk 0:02:31]}  c5 {[%clk 0:02:24]} 19. b5 {[%clk 0:02:19]}  a5 {[%clk 0:02:21]} 20. Nh2 {[%clk 0:02:14]}  Bc8 {[%clk 0:02:20]} 21. Rf1 {[%clk 0:02:14]}  h5 {[%clk 0:02:15]} 22. Rae1 {[%clk 0:02:08]}  h4 {[%clk 0:02:14]} 23. Ne2 {[%clk 0:02:06]}  Nh5 {[%clk 0:02:14]} 24. Bc1 {[%clk 0:01:46]}  f5 {[%clk 0:02:06]} 25. Bg5 {[%clk 0:01:42]}  Bf6 {[%clk 0:01:57]} 26. Bxf6 {[%clk 0:01:36]}  Nxf6 {[%clk 0:01:57]} 27. Nc3 {[%clk 0:01:37]}  f4 {[%clk 0:01:55]} 28. Nf3 {[%clk 0:00:58]}  Qh7 {[%clk 0:01:51]} 29. Kh2 {[%clk 0:00:58]}  Qh5 {[%clk 0:01:46]} 30. Rh1 {[%clk 0:00:57]}  g5 {[%clk 0:01:41]} 31. Kg1 {[%clk 0:00:57]}  Kg7 {[%clk 0:01:39]} 32. Kf1 {[%clk 0:00:56]}  Rh8 {[%clk 0:01:10]} 33. Rc1 {[%clk 0:00:55]}  Bd7 {[%clk 0:01:01]} 34. Ke1 {[%clk 0:00:49]}  Rag8 {[%clk 0:01:00]} 35. Kd2 {[%clk 0:00:49]}  Kf8 {[%clk 0:00:57]} 36. Rh2 {[%clk 0:00:44]}  g4 {[%clk 0:00:44]} 37. hxg4 {[%clk 0:00:44]}  Nxg4 {[%clk 0:00:44]} 38. Rxh4 {[%clk 0:00:36]}  Qxh4 {[%clk 0:00:45]} 39. Nxh4 {[%clk 0:00:36]}  Rxh4 {[%clk 0:00:45]} 40. Ke2 {[%clk 0:00:16]}  Rh2 {[%clk 0:00:43]} 41. Rg1 {[%clk 0:00:16]}  Nf6 {[%clk 0:00:41]} 42. Kf1 {[%clk 0:00:15]}  Ke7 {[%clk 0:00:21]} 43. Nb1 {[%clk 0:00:15]}  Rgxg2 {[%clk 0:00:14]} 44. Rxg2 {[%clk 0:00:14]}  Bh3 {[%clk 0:00:15]} 45. Qf3 {[%clk 0:00:10]}  Bxg2+ {[%clk 0:00:15]} 46. Qxg2 {[%clk 0:00:11]}  Rxg2 {[%clk 0:00:15]} 47. Kxg2 {[%clk 0:00:12]}  Nxe4 {[%clk 0:00:16]} 48. Kf3 {[%clk 0:00:11]}  Nf6 {[%clk 0:00:16]} 49. Nc3 {[%clk 0:00:10]}  Kf7 {[%clk 0:00:16]} 50. Kg2 {[%clk 0:00:09]}  e4 {[%clk 0:00:15]} 51. Kh3 {[%clk 0:00:09]}  Kg6 {[%clk 0:00:16]} 52. Kh4 {[%clk 0:00:10]}  Kf5 {[%clk 0:00:16]} 53. Kh3 {[%clk 0:00:10]}  Ke5 {[%clk 0:00:17]} 54. Ne2 {[%clk 0:00:09]}  f3 {[%clk 0:00:16]} 55. Ng3 {[%clk 0:00:09]}  Kd4 {[%clk 0:00:16]} 56. Nf5+ {[%clk 0:00:09]}  Kxc4 {[%clk 0:00:17]} 57. Nxd6+ {[%clk 0:00:09]}  Kxd5 {[%clk 0:00:17]} 58. Nc8 {[%clk 0:00:08]}  Nd7 {[%clk 0:00:16]} 59. Kg3 {[%clk 0:00:09]}  c4 {[%clk 0:00:17]} 60. Kf4 {[%clk 0:00:09]}  Kd4 {[%clk 0:00:16]} 61. Nd6 {[%clk 0:00:09]}  c3 {[%clk 0:00:16]} 62. Nf5+ {[%clk 0:00:09]}  Kc5 {[%clk 0:00:14]} 63. Ne3 {[%clk 0:00:08]}  Kb4 {[%clk 0:00:13]} 64. Kxe4 {[%clk 0:00:08]}  Kxa4 {[%clk 0:00:14]} 65. Kxf3 {[%clk 0:00:08]}  Kxb5 {[%clk 0:00:13]} 66. Ke4 {[%clk 0:00:09]}  Kb4 {[%clk 0:00:11]} 67. Kd3 {[%clk 0:00:08]}  Kb3 {[%clk 0:00:12]} 68. f4 {[%clk 0:00:08]}  a4 {[%clk 0:00:12]} 69. f5 {[%clk 0:00:09]}  a3 {[%clk 0:00:12]} 70. Nc2 {[%clk 0:00:09]}  Nc5+ {[%clk 0:00:12]} 71. Kd4 {[%clk 0:00:05]}  Kxc2 {[%clk 0:00:12]} 0-1


[Site "https://www.chess.com"]

[Event "Titled Tuesday Blitz July 18 Early 2023"]
[White "Gavrilov, Maxim"]
[Black "Gabdushev, Ruslan"]
[WhiteFideId "24271454"]
[BlackFideId "4137833"]
[WhiteElo "2570"]
[BlackElo "2401"]
[Result "0-1"]
[Round "3"]
[TimeControl "180+2"]
[Date "2023.07.18"]
[WhiteClock "0:00:00"]
[BlackClock "0:00:23"]
[Board "122"]

1. d4 {[%clk 0:02:56]}  Nc6 {[%clk 0:02:58]} 2. c4 {[%clk 0:02:53]}  e5 {[%clk 0:02:57]} 3. d5 {[%clk 0:02:53]}  Nce7 {[%clk 0:02:57]} 4. h4 {[%clk 0:02:51]}  Nf6 {[%clk 0:02:54]} 5. Nc3 {[%clk 0:02:50]}  g6 {[%clk 0:02:51]} 6. Nf3 {[%clk 0:02:46]}  d6 {[%clk 0:02:51]} 7. Bg5 {[%clk 0:02:40]}  Bg7 {[%clk 0:02:49]} 8. Bxf6 {[%clk 0:02:32]}  Bxf6 {[%clk 0:02:49]} 9. h5 {[%clk 0:02:33]}  gxh5 {[%clk 0:02:21]} 10. Rxh5 {[%clk 0:02:23]}  Bg4 {[%clk 0:02:19]} 11. Ne4 {[%clk 0:02:16]}  Ng6 {[%clk 0:02:17]} 12. Rh1 {[%clk 0:02:08]}  Bg7 {[%clk 0:02:13]} 13. Qd2 {[%clk 0:01:59]}  h6 {[%clk 0:01:56]} 14. O-O-O {[%clk 0:01:48]}  Bf5 {[%clk 0:01:42]} 15. Ng3 {[%clk 0:01:44]}  Qd7 {[%clk 0:01:38]} 16. Nh5 {[%clk 0:01:34]}  Kf8 {[%clk 0:01:37]} 17. g3 {[%clk 0:01:10]}  Qa4 {[%clk 0:01:28]} 18. b3 {[%clk 0:01:04]}  Qa3+ {[%clk 0:01:26]} 19. Qb2 {[%clk 0:01:02]}  Qc5 {[%clk 0:01:20]} 20. e3 {[%clk 0:00:54]}  a5 {[%clk 0:01:13]} 21. a3 {[%clk 0:00:44]}  Rh7 {[%clk 0:01:11]} 22. Nxg7 {[%clk 0:00:42]}  Kxg7 {[%clk 0:01:08]} 23. Be2 {[%clk 0:00:39]}  Rhh8 {[%clk 0:01:04]} 24. Nh4 {[%clk 0:00:36]}  Be4 {[%clk 0:00:56]} 25. f3 {[%clk 0:00:25]}  Qxe3+ {[%clk 0:00:54]} 26. Rd2 {[%clk 0:00:21]}  Nxh4 {[%clk 0:00:53]} 27. fxe4 {[%clk 0:00:16]}  Ng6 {[%clk 0:00:48]} 28. Bd3 {[%clk 0:00:09]}  h5 {[%clk 0:00:41]} 29. Kb1 {[%clk 0:00:08]}  Qxg3 {[%clk 0:00:37]} 30. Qc2 {[%clk 0:00:07]}  Nf4 {[%clk 0:00:36]} 31. Qd1 {[%clk 0:00:04]}  Kf6 {[%clk 0:00:34]} 32. Rg1 {[%clk 0:00:04]}  Qe3 {[%clk 0:00:34]} 33. Bc2 {[%clk 0:00:03]}  a4 {[%clk 0:00:33]} 34. b4 {[%clk 0:00:02]}  Qxa3 {[%clk 0:00:32]} 35. Qe1 {[%clk 0:00:02]}  Qxb4+ {[%clk 0:00:31]} 36. Kc1 {[%clk 0:00:02]}  Qa3+ {[%clk 0:00:30]} 37. Kb1 {[%clk 0:00:02]}  h4 {[%clk 0:00:28]} 38. Rf2 {[%clk 0:00:00]}  h3 {[%clk 0:00:23]} 0-1


[Site "https://www.chess.com"]